bitfinex-derivatives/quotes_BTCF0:USTF0_20241104
["timestamp","ask_amount","ask_price","bid_price","bid_amount"]
[1730756044035,0.3608,67214.0,67207.0,0.04413172]
[1730756044226,0.3608,67221.0,67208.0,0.074451]
[1730756044428,0.3608,67228.0,67211.0,0.3608]
[1730756044728,0.3608,67228.0,67192.0,0.074469]
[1730756044729,0.3608,67215.0,67192.0,0.3608]
[1730756044927,0.3608,67215.0,67199.0,0.3608]
[1730756045133,0.436237,67221.0,67207.0,0.074452]
[1730756045330,0.436237,67221.0,67200.0,1.5]
[1730756045331,0.437237,67221.0,67200.0,1.5]
[1730756045527,0.437237,67221.0,67213.0,0.074445]
[1730756045528,0.3628,67221.0,67213.0,0.074445]
[1730756045833,0.3628,67221.0,67205.0,0.3608]
[1730756045834,0.69162787,67214.0,67190.0,0.3608]
[1730756046019,0.3608,67214.0,67192.0,0.074468]
[1730756046223,0.3608,67214.0,67190.0,0.6608]
[1730756046428,0.3608,67214.0,67199.0,0.07446]
[1730756046633,0.3608,67214.0,67201.0,0.074458]
[1730756046836,0.3608,67214.0,67203.0,0.3608]
[1730756047024,0.3678,67221.0,67203.0,0.3608]
[1730756047328,0.3608,67215.0,67207.0,0.074452]
[1730756047534,0.3618,67215.0,67207.0,0.074452]
[1730756047723,0.3618,67215.0,67193.0,0.21453235]
[1730756047931,0.3618,67215.0,67198.0,0.3608]
[1730756048123,0.3608,67215.0,67198.0,0.3608]
[1730756048525,0.3608,67208.0,67206.0,0.00106594]
[1730756048723,0.074452,67207.0,67206.0,0.00106594]
[1730756049122,0.520852,67207.0,67206.0,0.00106594]
[1730756049339,0.074466,67195.0,67188.0,0.0403]
[1730756049527,0.3608,67194.0,67188.0,0.0403]
[1730756050128,0.3608,67200.0,67188.0,0.0403]
[1730756050328,0.3608,67208.0,67193.0,0.074467]
[1730756050329,0.074458,67202.0,67193.0,0.074467]
[1730756050532,0.074458,67202.0,67192.0,0.3608]
[1730756050533,0.3608,67202.0,67192.0,0.3608]
[1730756050724,0.074461,67199.0,67190.0,0.074471]
[1730756050926,0.074463,67198.0,67188.0,0.0403]
[1730756051120,0.074463,67198.0,67189.0,0.074472]
[1730756051330,0.002,67200.0,67188.0,0.0403]
[1730756051536,0.21453235,67193.0,67177.0,0.3608]
[1730756051854,0.3608,67194.0,67160.0,0.00223334]
[1730756051855,0.3608,67181.0,67160.0,0.00223334]
[1730756052135,0.21453235,67174.0,67166.0,0.074497]
[1730756052521,0.074488,67175.0,67163.0,0.3608]
[1730756052522,0.3608,67175.0,67163.0,0.3608]
[1730756052727,0.3608,67181.0,67163.0,0.3608]
[1730756053031,0.56212,67194.0,67180.0,0.3608]
[1730756053032,0.00412001,67194.0,67180.0,0.3608]
[1730756053332,0.002,67194.0,67192.0,0.074468]
[1730756053520,0.00323408,67199.0,67198.0,0.074462]
[1730756054126,0.00223408,67199.0,67198.0,0.074462]
[1730756055237,0.00223408,67199.0,67195.0,0.3608]
[1730756055424,0.86335408,67199.0,67178.0,0.3608]
[1730756055630,0.86335408,67199.0,67167.0,0.3608]
[1730756055631,0.3608,67179.0,67167.0,0.3608]
[1730756056039,0.3608,67179.0,67172.0,0.074491]
[1730756056231,0.3608,67179.0,67167.0,0.3608]
[1730756056434,0.3608,67179.0,67173.0,0.00145476]
[1730756056624,0.363,67187.0,67174.0,0.3608]
[1730756056829,0.00323408,67199.0,67182.0,0.3608]
[1730756057033,0.00323408,67199.0,67173.0,0.30145476]
[1730756057034,0.00323408,67199.0,67190.0,0.00218214]
[1730756057233,0.00323408,67199.0,67195.0,0.074465]
[1730756057744,0.00323408,67199.0,67195.0,0.074458]
[1730756058035,0.00323408,67199.0,67197.0,0.00218214]
[1730756058242,0.00223408,67199.0,67197.0,0.00218214]
[1730756058433,0.074455,67198.0,67197.0,0.00218214]
[1730756058634,0.00223408,67199.0,67198.0,0.074455]
[1730756058938,0.00223408,67199.0,67197.0,0.00291121]
[1730756059124,0.00223408,67199.0,67198.0,0.074455]
[1730756059531,0.00223408,67199.0,67198.0,0.435255]
[1730756059737,0.00223408,67199.0,67198.0,0.43816621]
[1730756060142,0.21453235,67220.0,67209.0,0.074442]
[1730756060332,0.21453235,67220.0,67214.0,0.00364028]
[1730756060531,0.4373208,67220.0,67214.0,0.00364028]
[1730756060842,0.074436,67215.0,67214.0,0.00364028]
[1730756061225,0.520756,67215.0,67214.0,0.00364028]
[1730756062842,0.522756,67215.0,67214.0,0.00364028]
[1730756063039,0.076436,67215.0,67214.0,0.00364028]
[1730756063733,0.522756,67215.0,67214.0,0.00364028]
[1730756063937,0.522756,67215.0,67202.0,0.05912232]
[1730756063938,0.074445,67207.0,67206.0,0.04434174]
[1730756064143,0.074445,67207.0,67194.0,0.04436047]
[1730756064144,0.435245,67207.0,67194.0,0.04436047]
[1730756064340,0.57533235,67195.0,67183.0,0.04437542]
[1730756064539,0.074472,67183.0,67180.0,0.04437542]
[1730756064741,0.074472,67183.0,67178.0,0.04437542]
[1730756065129,0.074464,67190.0,67181.0,0.074473]
[1730756065333,0.074464,67190.0,67175.0,0.3608]
[1730756065334,0.074465,67190.0,67182.0,0.074473]
[1730756065534,0.074465,67190.0,67180.0,0.04437542]
[1730756065535,0.22421092,67194.0,67183.0,0.04437542]
[1730756065740,0.07446,67194.0,67187.0,0.074467]
[1730756065941,0.3608,67198.0,67181.0,0.3608]
[1730756066244,0.3608,67198.0,67185.0,0.074469]
[1730756066245,0.074462,67192.0,67185.0,0.074469]
[1730756066744,0.001,67195.0,67175.0,0.3608]
[1730756066944,0.074464,67190.0,67182.0,0.074473]
[1730756067238,0.074464,67190.0,67183.0,0.0413]
[1730756067437,0.076464,67190.0,67183.0,0.0413]
[1730756068235,0.075464,67190.0,67183.0,0.0413]
[1730756068434,0.076464,67190.0,67183.0,0.0413]
[1730756068738,0.002,67190.0,67189.0,0.074465]
[1730756068931,0.002,67190.0,67187.0,0.3608]
[1730756069433,0.074466,67188.0,67183.0,0.115771]
[1730756069634,0.002,67190.0,67184.0,0.07447]
[1730756070038,0.001,67190.0,67183.0,0.0413]
[1730756070234,0.3608,67198.0,67183.0,0.0423]
[1730756070436,0.21453235,67201.0,67189.0,0.3608]
[1730756070639,0.074459,67195.0,67187.0,0.074467]
[1730756070840,0.074457,67197.0,67190.0,0.074464]
[1730756071143,0.002,67190.0,67189.0,0.435265]
[1730756071350,0.074457,67196.0,67191.0,0.074462]
[1730756071641,0.074457,67196.0,67192.0,0.07446]
[1730756071951,0.074457,67196.0,67195.0,0.3608]
[1730756072145,0.03318668,67196.0,67195.0,0.3608]
[1730756072444,0.074452,67201.0,67198.0,0.074455]
[1730756072634,0.03327837,67200.0,67198.0,0.074455]
[1730756072939,0.03327837,67199.0,67198.0,0.074455]
[1730756073142,0.03327837,67199.0,67198.0,0.435255]
[1730756073446,0.074448,67205.0,67198.0,0.435255]
[1730756073744,0.074448,67205.0,67199.0,0.074453]
[1730756074052,0.074426,67225.0,67204.0,0.3608]
[1730756074053,0.00223286,67219.0,67204.0,0.3608]
[1730756074232,0.00223286,67219.0,67210.0,0.3608]
[1730756074437,0.074408,67241.0,67234.0,0.074415]
[1730756074736,0.21453235,67247.0,67225.0,0.074425]
[1730756074737,0.074418,67232.0,67225.0,0.074425]
[1730756074934,0.07442,67230.0,67225.0,0.074425]
[1730756075136,0.074414,67235.0,67229.0,0.07442]
[1730756075342,0.57533235,67240.0,67229.0,0.07442]
[1730756075343,0.36292001,67240.0,67229.0,0.3608]
[1730756075534,0.21453235,67249.0,67238.0,0.07441]
[1730756075535,0.012,67241.0,67238.0,0.07441]
[1730756075731,0.012,67241.0,67240.0,0.3608]
[1730756076162,0.3608,67257.0,67240.0,0.3608]
[1730756076163,0.074375,67271.0,67265.0,0.07438]
[1730756076449,0.074375,67271.0,67251.0,0.074395]
[1730756076450,0.0022,67284.0,67270.0,0.3608]
[1730756076649,0.074365,67280.0,67270.0,0.3608]
[1730756076850,0.435158,67286.0,67277.0,0.074367]
[1730756077150,0.10144,67300.0,67270.0,0.3608]
[1730756077151,0.074348,67295.0,67285.0,0.074358]
[1730756077442,0.21453235,67292.0,67276.0,0.3608]
[1730756077750,0.014,67284.0,67278.0,0.074366]
[1730756078044,0.014,67284.0,67277.0,1.5]
[1730756078253,0.435149,67294.0,67283.0,0.07436]
[1730756078436,0.3608,67294.0,67277.0,1.5]
[1730756078632,0.014,67295.0,67288.0,0.074355]
[1730756078941,0.004,67284.0,67283.0,0.435161]
[1730756079143,0.014,67292.0,67283.0,0.80668]
[1730756079454,0.014,67292.0,67289.0,0.3608]
[1730756079455,0.088351,67292.0,67289.0,0.3608]
[1730756079640,0.014,67292.0,67289.0,0.3608]
[1730756080242,0.003,67294.0,67289.0,0.3608]
[1730756080451,0.003,67294.0,67292.0,0.07435]
[1730756080452,0.017,67294.0,67292.0,0.07435]
[1730756080743,0.017,67294.0,67293.0,0.07435]
[1730756081048,0.1,67300.0,67289.0,0.3608]
[1730756081253,0.1,67300.0,67291.0,0.3608]
[1730756081445,0.1,67300.0,67283.0,0.3608]
[1730756081446,0.07435,67293.0,67283.0,0.3608]
[1730756081745,0.07435,67293.0,67289.0,0.3608]
[1730756081746,0.001,67292.0,67289.0,0.3608]
[1730756082151,0.001,67292.0,67289.0,0.435154]
[1730756082333,0.074353,67290.0,67289.0,0.3608]
[1730756083738,0.006,67294.0,67289.0,0.3608]
[1730756083739,0.006,67294.0,67293.0,0.07435]
[1730756084141,0.006,67294.0,67290.0,0.3608]
[1730756084340,0.080349,67294.0,67290.0,0.3608]
[1730756084537,0.33034016,67299.0,67290.0,0.3608]
[1730756084746,0.3608,67298.0,67290.0,0.3608]
[1730756084941,0.074351,67292.0,67290.0,0.3608]
[1730756085352,0.33034016,67291.0,67289.0,0.013]
[1730756085536,0.074353,67290.0,67289.0,0.013]
[1730756086151,0.3608,67298.0,67289.0,0.013]
[1730756086444,0.3608,67298.0,67290.0,0.003]
[1730756086445,0.074349,67294.0,67290.0,0.003]
[1730756087144,0.3608,67292.0,67291.0,0.074352]
[1730756088052,0.074345,67297.0,67291.0,0.074352]
[1730756088243,0.001,67292.0,67291.0,0.084352]
[1730756088551,0.001,67292.0,67289.0,0.01]
[1730756088552,0.3618,67292.0,67281.0,0.0416]
[1730756089047,0.074357,67287.0,67283.0,0.074361]
[1730756089548,0.3608,67292.0,67277.0,0.435167]
[1730756089753,0.76549116,67292.0,67291.0,0.005]
[1730756089951,1.16050581,67292.0,67291.0,0.005]
[1730756090137,1.60634581,67292.0,67291.0,0.005]
[1730756090342,1.60634581,67292.0,67271.0,0.00222959]
[1730756090343,1.90634581,67292.0,67275.0,0.07437]
[1730756090542,0.074365,67279.0,67271.0,0.00222959]
[1730756090843,0.074365,67279.0,67277.0,0.074367]
[1730756091238,0.3608,67282.0,67271.0,0.00222959]
[1730756091442,0.3608,67272.0,67271.0,0.00222959]
[1730756091642,0.3608,67272.0,67271.0,0.07660359]
[1730756091844,0.33034016,67293.0,67271.0,0.36302959]
[1730756092041,0.074358,67286.0,67277.0,0.001]
[1730756092346,0.66052263,67291.0,67278.0,0.074366]
[1730756092650,0.001,67279.0,67277.0,0.007]
[1730756092950,0.001,67279.0,67277.0,0.081367]
[1730756093354,0.3608,67284.0,67277.0,0.001]
[1730756093554,0.33178016,67285.0,67281.0,0.074362]
[1730756093860,0.33034016,67285.0,67278.0,0.001]
[1730756094053,0.440152,67291.0,67283.0,0.07436]
[1730756094657,0.074353,67290.0,67283.0,0.07436]
[1730756095555,0.074353,67290.0,67277.0,0.005]
[1730756095556,0.3618,67291.0,67277.0,0.005]
[1730756095755,0.3618,67291.0,67280.0,0.074363]
[1730756095953,0.074366,67278.0,67271.0,0.00222959]
[1730756096149,0.3608,67282.0,67272.0,0.074373]
[1730756096345,0.3608,67276.0,67264.0,0.31397]
[1730756096555,0.3608,67276.0,67273.0,0.074371]
[1730756096752,0.3608,67276.0,67268.0,0.074376]
[1730756096753,0.07437,67275.0,67268.0,0.074376]
[1730756096956,0.07437,67275.0,67264.0,0.31397]
[1730756096957,0.3608,67270.0,67264.0,0.388351]
[1730756097260,0.3608,67270.0,67266.0,0.074379]
[1730756097761,0.074356,67288.0,67266.0,0.074379]
[1730756097762,0.001,67290.0,67269.0,0.3608]
[1730756097964,0.074363,67281.0,67275.0,0.074369]
[1730756098257,0.074363,67281.0,67269.0,0.3608]
[1730756098258,0.074366,67279.0,67271.0,0.074373]
[1730756098460,0.3608,67285.0,67271.0,0.074373]
[1730756098461,0.074369,67276.0,67271.0,0.074373]
[1730756098845,0.074369,67276.0,67264.0,0.005]
[1730756098846,0.074371,67274.0,67268.0,0.074377]
[1730756099550,0.001,67270.0,67268.0,0.074377]
[1730756099751,0.001,67270.0,67269.0,0.074376]
[1730756100251,0.001,67274.0,67271.0,0.074374]
[1730756100747,0.001,67274.0,67271.0,0.079374]
[1730756100948,0.435173,67272.0,67271.0,0.005]
[1730756101152,0.074375,67270.0,67269.0,0.007]
[1730756101353,0.28971216,67270.0,67269.0,0.007]
[1730756101753,0.28871216,67270.0,67269.0,0.002]
[1730756102666,0.074381,67265.0,67262.0,0.074384]
[1730756103160,0.074382,67264.0,67262.0,0.074384]
[1730756103359,0.21433716,67263.0,67251.0,0.00223028]
[1730756103748,0.3608,67264.0,67251.0,0.00223028]
[1730756103959,0.21433716,67263.0,67251.0,0.00223028]
[1730756104150,0.3608,67257.0,67251.0,0.00223028]
[1730756104350,0.074395,67252.0,67251.0,0.00223028]
[1730756104551,0.57513716,67262.0,67251.0,0.00223028]
[1730756104752,0.57513716,67262.0,67260.0,0.074386]
[1730756105053,0.074388,67259.0,67256.0,0.07439]
[1730756105362,0.074386,67260.0,67255.0,0.074391]
[1730756105565,0.074386,67260.0,67251.0,0.00723028]
[1730756105760,0.074386,67260.0,67252.0,0.074395]
[1730756105965,0.074395,67253.0,67251.0,0.00723028]
[1730756106263,0.3608,67256.0,67254.0,0.074392]
[1730756107159,0.3608,67256.0,67255.0,0.074392]
[1730756107362,0.3618,67256.0,67255.0,0.074392]
[1730756108057,0.002,67256.0,67255.0,0.074392]
[1730756108863,0.002,67256.0,67255.0,0.079392]
[1730756109560,0.001,67256.0,67255.0,0.005]
[1730756109866,0.076391,67256.0,67255.0,0.011]
[1730756110768,0.002,67256.0,67255.0,0.085392]
[1730756113168,0.65152816,67256.0,67255.0,0.011]
[1730756114164,0.76473653,67256.0,67255.0,0.00646613]
[1730756114360,0.76473653,67256.0,67251.0,0.00223028]
[1730756114361,1.20881653,67256.0,67251.0,0.00223028]
[1730756114561,1.20881653,67256.0,67231.0,0.00015814]
[1730756114562,0.21433716,67241.0,67214.0,0.00223152]
[1730756114759,0.21433716,67241.0,67214.0,0.07666852]
[1730756114760,0.3608,67216.0,67214.0,0.07666852]
[1730756114962,0.3608,67216.0,67214.0,0.00223152]
[1730756114963,0.074436,67215.0,67214.0,0.00223152]
[1730756115161,0.074436,67215.0,67202.0,0.07445]
[1730756115162,0.10508013,67215.0,67202.0,0.07445]
[1730756115359,0.10508013,67215.0,67200.0,0.0406]
[1730756115360,0.28878616,67203.0,67200.0,0.0406]
[1730756115562,0.28878616,67203.0,67192.0,1.574461]
[1730756115563,0.074456,67197.0,67192.0,1.574461]
[1730756115765,0.28879716,67193.0,67187.0,0.074467]
[1730756115969,0.28879716,67193.0,67192.0,0.074461]
[1730756115970,0.21433716,67193.0,67192.0,0.074461]
[1730756116168,0.21433716,67193.0,67185.0,0.3608]
[1730756116169,0.21433716,67199.0,67186.0,1.5]
[1730756116473,0.3608,67208.0,67186.0,1.5]
[1730756116474,0.074448,67205.0,67187.0,0.074467]
[1730756116666,0.07445,67203.0,67198.0,0.074455]
[1730756116865,0.21433716,67206.0,67187.0,0.004]
[1730756117064,0.3608,67208.0,67191.0,0.3608]
[1730756117262,0.297,67208.0,67205.0,0.21433716]
[1730756117463,0.00223306,67232.0,67205.0,0.21433716]
[1730756117464,0.00223306,67232.0,67231.0,0.074418]
[1730756117863,0.10250044,67249.0,67222.0,0.3608]
[1730756117864,0.21433716,67246.0,67235.0,0.074413]
[1730756118168,0.3608,67242.0,67235.0,0.074413]
[1730756118466,0.3608,67242.0,67228.0,0.3608]
[1730756118467,0.03031934,67241.0,67228.0,0.3608]
[1730756118866,0.3608,67242.0,67228.0,0.3608]
[1730756119070,0.074405,67243.0,67238.0,0.074411]
[1730756119272,0.074402,67247.0,67231.0,0.002]
[1730756119474,0.3608,67248.0,67239.0,0.074409]
[1730756119662,0.33059132,67246.0,67231.0,0.002]
[1730756119864,0.3608,67242.0,67227.0,0.074422]
[1730756120176,0.074416,67233.0,67228.0,0.075421]
[1730756120362,0.074421,67229.0,67228.0,0.001]
[1730756120772,0.3608,67233.0,67228.0,0.001]
[1730756120972,0.074419,67231.0,67228.0,0.001]
[1730756121275,0.3608,67234.0,67231.0,0.074417]
[1730756121466,0.3608,67234.0,67232.0,0.074416]
[1730756121770,0.3608,67234.0,67228.0,0.001]
[1730756121771,0.074419,67231.0,67228.0,0.001]
[1730756121973,0.3608,67234.0,67228.0,0.001]
[1730756122568,0.07442,67230.0,67224.0,0.074426]
[1730756122770,0.001,67229.0,67228.0,0.076422]
[1730756123273,0.074418,67232.0,67228.0,0.076422]
[1730756123461,0.3618,67234.0,67229.0,0.074421]
[1730756123872,0.3608,67234.0,67233.0,0.074416]
[1730756124162,0.3608,67234.0,67231.0,0.074417]
[1730756124662,0.001,67232.0,67231.0,0.074417]
[1730756125080,0.3608,67256.0,67231.0,0.7462]
[1730756125379,0.0423,67262.0,67231.0,0.7462]
[1730756125380,0.3608,67262.0,67259.0,0.074387]
[1730756125577,0.3608,67262.0,67254.0,0.074392]
[1730756125763,0.3608,67262.0,67256.0,0.074391]
[1730756126571,0.3608,67262.0,67259.0,0.013]
[1730756126771,0.00323151,67261.0,67259.0,0.013]
[1730756126977,0.074386,67260.0,67259.0,0.013]
[1730756127282,0.074386,67260.0,67259.0,0.005]
[1730756127478,0.07439,67257.0,67256.0,0.014]
[1730756127975,0.07439,67257.0,67230.0,0.3608]
[1730756127976,1.13743132,67257.0,67230.0,0.3608]
[1730756128179,0.074412,67237.0,67230.0,0.3608]
[1730756128478,0.074408,67241.0,67233.0,0.074416]
[1730756128683,0.074408,67241.0,67232.0,0.3608]
[1730756128978,0.074393,67255.0,67247.0,0.0744]
[1730756128979,0.074392,67255.0,67247.0,0.0744]
[1730756129176,0.074392,67255.0,67249.0,0.435197]
[1730756129373,0.074392,67255.0,67249.0,0.074397]
[1730756129777,0.001,67241.0,67238.0,0.3608]
[1730756130078,0.001,67241.0,67240.0,0.074408]
[1730756130580,0.3608,67258.0,67238.0,0.3608]
[1730756130784,0.435197,67250.0,67249.0,0.008]
[1730756130967,0.074407,67241.0,67226.0,0.0443532]
[1730756131172,0.074407,67241.0,67235.0,0.074414]
[1730756131367,0.3608,67242.0,67240.0,0.014]
[1730756131977,0.435206,67242.0,67240.0,0.014]
[1730756132174,0.001,67241.0,67240.0,0.018]
[1730756132781,0.001,67241.0,67240.0,0.004]
[1730756132985,0.074407,67241.0,67240.0,0.004]
[1730756133487,0.075407,67241.0,67240.0,0.014]
[1730756133779,0.076407,67241.0,67240.0,0.014]
[1730756134371,0.074415,67234.0,67230.0,0.074419]
[1730756134568,0.002,67241.0,67223.0,0.3608]
[1730756134569,0.074419,67230.0,67223.0,0.3608]
[1730756134771,0.074419,67230.0,67221.0,0.074429]
[1730756135069,0.074428,67222.0,67209.0,1.8608]
[1730756135276,0.3608,67221.0,67209.0,0.3608]
[1730756135471,0.074432,67219.0,67218.0,0.074433]
[1730756135873,0.074432,67219.0,67209.0,0.3608]
[1730756135874,0.074433,67219.0,67210.0,0.074441]
[1730756136177,0.3608,67221.0,67210.0,0.074441]
[1730756136178,0.074438,67213.0,67210.0,0.074441]
[1730756136379,0.074438,67213.0,67211.0,0.07444]
[1730756136580,0.074438,67213.0,67212.0,0.074439]
[1730756136779,0.3608,67214.0,67213.0,0.074438]
[1730756137276,0.001,67219.0,67210.0,0.3668]
[1730756137476,0.074438,67214.0,67211.0,0.07444]
[1730756137872,0.001,67219.0,67210.0,0.006]
[1730756138175,0.001,67219.0,67195.0,0.00223183]
[1730756138176,0.07444,67211.0,67195.0,0.00223183]
[1730756138371,0.074457,67196.0,67195.0,0.00223183]
[1730756138574,0.074457,67196.0,67195.0,0.07668983]
[1730756138978,0.074457,67196.0,67195.0,0.00223183]
[1730756139570,0.075457,67196.0,67195.0,0.00323183]
[1730756139982,0.075457,67196.0,67195.0,0.00223183]
[1730756140181,0.075457,67196.0,67195.0,0.00323183]
[1730756140773,0.075457,67196.0,67195.0,0.01223183]
[1730756140988,0.436257,67196.0,67195.0,0.01]
[1730756141576,1.33091592,67196.0,67172.0,0.3608]
[1730756141773,0.3608,67182.0,67172.0,0.3608]
[1730756142086,0.69139132,67176.0,67171.0,0.00223296]
[1730756142286,0.074484,67172.0,67171.0,0.00223296]
[1730756142985,0.69283132,67176.0,67162.0,0.3608]
[1730756143185,0.3608,67176.0,67175.0,0.07448]
[1730756143380,0.3608,67182.0,67175.0,0.07448]
[1730756143579,0.3608,67182.0,67170.0,0.3608]
[1730756143580,0.3608,67182.0,67181.0,0.074474]
[1730756144789,1.02199099,67182.0,67169.0,0.074486]
[1730756145089,0.3608,67189.0,67148.0,0.0591376]
[1730756145090,0.001,67176.0,67175.0,0.07448]
[1730756145582,0.074463,67191.0,67172.0,0.074484]
[1730756145886,0.3608,67191.0,67178.0,0.3608]
[1730756146278,0.0766978,67190.0,67185.0,0.074469]
[1730756146471,0.07447,67185.0,67178.0,0.3608]
[1730756146788,0.074466,67189.0,67178.0,0.3608]
[1730756146983,0.074466,67188.0,67182.0,0.074472]
[1730756147381,0.074469,67186.0,67182.0,0.074472]
[1730756147685,0.074469,67186.0,67170.0,0.3608]
[1730756147686,0.3608,67183.0,67170.0,0.3593]
[1730756147982,0.074469,67186.0,67170.0,0.3593]
[1730756148172,0.074469,67186.0,67181.0,0.074473]
[1730756148376,0.0032338,67190.0,67181.0,1.5]
[1730756148577,0.3608,67185.0,67174.0,0.25898419]
[1730756148782,0.001,67183.0,67182.0,0.074473]
[1730756148989,0.001,67183.0,67182.0,1.574473]
[1730756149485,0.07447,67184.0,67176.0,0.3608]
[1730756149679,0.3618,67185.0,67184.0,0.07447]
[1730756149680,0.001,67185.0,67184.0,0.07447]
[1730756150074,0.074467,67187.0,67184.0,0.07447]
[1730756150277,0.0032338,67190.0,67182.0,0.074472]
[1730756150278,0.074468,67186.0,67182.0,0.074472]
[1730756150681,0.001,67184.0,67182.0,0.074472]
[1730756151185,0.001,67183.0,67182.0,0.074472]
[1730756151782,0.001,67184.0,67181.0,0.074474]
[1730756152084,0.074477,67178.0,67177.0,0.00084]
[1730756152284,0.002,67184.0,67169.0,0.074487]
[1730756152285,0.3608,67179.0,67169.0,0.074487]
[1730756152485,0.3608,67179.0,67167.0,0.3608]
[1730756152785,0.3608,67179.0,67171.0,0.074484]
[1730756153287,0.074477,67178.0,67171.0,0.074484]
[1730756153488,0.3618,67179.0,67171.0,0.074484]
[1730756153691,0.074483,67173.0,67167.0,0.3608]
[1730756154181,0.3628,67179.0,67176.0,0.074479]
[1730756154688,0.074477,67178.0,67176.0,0.074479]
[1730756154875,0.002,67179.0,67167.0,0.3608]
[1730756154876,0.001,67179.0,67167.0,0.3608]
[1730756155077,0.001,67179.0,67168.0,0.074487]
[1730756155078,0.074485,67172.0,67168.0,0.074487]
[1730756155286,0.074485,67172.0,67167.0,0.001]
[1730756155491,0.074488,67168.0,67167.0,0.001]
[1730756155882,0.074491,67165.0,67164.0,0.00223321]
[1730756156182,0.3608,67169.0,67164.0,0.00223321]
[1730756156382,0.074491,67165.0,67164.0,0.00223321]
[1730756156590,0.3608,67169.0,67164.0,0.07672621]
[1730756156890,0.07449,67166.0,67164.0,0.07672621]
[1730756157092,0.001,67168.0,67167.0,0.074489]
[1730756157386,0.075489,67168.0,67164.0,0.00223321]
[1730756157589,0.074491,67165.0,67164.0,0.00223321]
[1730756158178,0.001,67168.0,67164.0,0.07672421]
[1730756158390,0.076488,67168.0,67167.0,0.001]
[1730756158590,0.075488,67168.0,67167.0,0.001]
[1730756158988,0.522128,67168.0,67167.0,0.001]
[1730756159290,0.522128,67168.0,67147.0,0.0591376]
[1730756159291,0.074505,67153.0,67152.0,0.074506]
[1730756159497,0.074493,67164.0,67143.0,0.0613715]
[1730756159498,0.074507,67151.0,67149.0,0.074509]
[1730756159795,0.21463099,67161.0,67154.0,0.074504]
[1730756159996,0.074503,67155.0,67154.0,0.074504]
[1730756161395,0.074503,67155.0,67135.0,0.074524]
[1730756161396,0.521304,67154.0,67118.0,0.48166146]
[1730756161697,0.3608,67129.0,67118.0,0.48166146]
[1730756161893,0.21463099,67132.0,67118.0,0.48166146]
[1730756161894,0.28915999,67132.0,67118.0,0.48166146]
[1730756162102,0.64997299,67119.0,67118.0,0.12086146]
[1730756162286,0.64997299,67119.0,67111.0,0.00584]
[1730756162287,0.07455,67112.0,67111.0,0.00584]
[1730756162597,0.07455,67112.0,67088.0,0.0421]
[1730756162598,0.074562,67101.0,67100.0,0.3324]
[1730756162787,0.28919299,67101.0,67100.0,0.3324]
[1730756163092,0.73627299,67101.0,67100.0,0.3154]
[1730756163394,0.7451345,67101.0,67100.0,0.3154]
[1730756163590,0.87634198,67101.0,67087.0,0.3608]
[1730756163790,0.074585,67081.0,67067.0,0.3608]
[1730756163993,0.21463099,67081.0,67076.0,0.07459]
[1730756164293,0.3608,67088.0,67067.0,0.3608]
[1730756164294,0.21463099,67087.0,67067.0,0.3608]
[1730756164488,0.21463099,67080.0,67067.0,0.3608]
[1730756164687,0.21463099,67080.0,67051.0,0.21463099]
[1730756164688,0.074595,67072.0,67060.0,0.3608]
[1730756164880,0.21463099,67073.0,67060.0,0.3608]
[1730756165082,0.3608,67076.0,67060.0,0.3608]
[1730756165282,0.3608,67076.0,67068.0,0.3608]
[1730756165494,0.001,67081.0,67062.0,0.074606]
[1730756165687,0.001,67080.0,67060.0,0.3608]
[1730756165894,0.001,67080.0,67078.0,0.074587]
[1730756166091,0.001,67080.0,67071.0,0.074595]
[1730756166391,0.3608,67074.0,67072.0,1.5]
[1730756166588,0.001,67076.0,67072.0,1.5]
[1730756166894,0.3618,67081.0,67072.0,1.5]
[1730756167086,0.001,67080.0,67072.0,1.5]
[1730756167482,0.3608,67074.0,67072.0,1.5]
[1730756167700,0.001,67073.0,67072.0,1.5]
[1730756168005,0.3608,67075.0,67072.0,1.5]
[1730756168197,0.001,67080.0,67070.0,0.074596]
[1730756168384,0.3608,67081.0,67073.0,0.074593]
[1730756168578,0.3608,67081.0,67070.0,0.3608]
[1730756168579,0.001,67074.0,67072.0,0.075594]
[1730756168780,0.001,67080.0,67079.0,0.074587]
[1730756168998,0.00223792,67094.0,67078.0,0.3608]
[1730756169181,0.00223792,67094.0,67093.0,0.3608]
[1730756169388,0.00223792,67094.0,67086.0,0.3608]
[1730756169593,0.00223792,67094.0,67093.0,0.3608]
[1730756169892,0.00223792,67094.0,67093.0,1.8608]
[1730756170887,0.00223792,67094.0,67039.0,0.12048252]
[1730756170888,0.074584,67082.0,67078.0,0.002]
[1730756171089,0.074584,67082.0,67070.0,0.3608]
[1730756171090,0.3608,67082.0,67070.0,0.3608]
[1730756171294,0.2226755,67081.0,67070.0,0.3608]
[1730756171490,0.3608,67082.0,67070.0,0.3608]
[1730756171682,0.36675793,67094.0,67070.0,0.3608]
[1730756171683,0.3608,67086.0,67070.0,0.3608]
[1730756171884,0.36503792,67094.0,67070.0,0.99218904]
[1730756172087,0.36503792,67094.0,67091.0,0.7216]
[1730756172088,0.22420769,67093.0,67091.0,0.7216]
[1730756172383,0.00323792,67094.0,67091.0,0.7216]
[1730756172582,0.3608,67107.0,67091.0,0.7216]
[1730756172583,0.38443397,67107.0,67091.0,0.7216]
[1730756172785,0.38443397,67107.0,67099.0,0.3608]